[Event "Titled Tuesday Blitz May 31 Late 2022"]
[White "Zhigalko, Sergei"]
[Black "Kamsky, Gata"]
[WhiteFideId "13502956"]
[BlackFideId "2000024"]
[WhiteElo "2662"]
[BlackElo "2645"]
[Result "0-1"]
[Round "11"]
[TimeControl "180+1"]
[Date "2022.05.31"]
[WhiteClock "0:00:06"]
[BlackClock "0:00:10"]

1. e4 {[%clk 0:03:00]}  c5 {[%clk 0:02:58]} 2. Nf3 {[%clk 0:02:59]}  e6 {[%clk 0:02:58]} 3. c3 {[%clk 0:03:00]}  d5 {[%clk 0:02:58]} 4. e5 {[%clk 0:03:00]}  d4 {[%clk 0:02:57]} 5. Bd3 {[%clk 0:03:00]}  Bd7 {[%clk 0:02:57]} 6. O-O {[%clk 0:03:00]}  Bc6 {[%clk 0:02:56]} 7. Re1 {[%clk 0:03:00]}  Ne7 {[%clk 0:02:54]} 8. b4 {[%clk 0:02:59]}  Ng6 {[%clk 0:02:43]} 9. b5 {[%clk 0:02:51]}  Bd5 {[%clk 0:02:40]} 10. c4 {[%clk 0:02:51]}  Bxf3 {[%clk 0:02:37]} 11. Qxf3 {[%clk 0:02:52]}  Qc7 {[%clk 0:02:34]} 12. Bxg6 {[%clk 0:02:32]}  hxg6 {[%clk 0:02:33]} 13. d3 {[%clk 0:02:32]}  Nd7 {[%clk 0:02:30]} 14. Bf4 {[%clk 0:02:32]}  a5 {[%clk 0:02:04]} 15. Nd2 {[%clk 0:02:29]}  Be7 {[%clk 0:01:39]} 16. Ne4 {[%clk 0:02:12]}  O-O-O {[%clk 0:01:34]} 17. b6 {[%clk 0:01:46]}  Qxb6 {[%clk 0:01:26]} 18. Rab1 {[%clk 0:01:33]}  Qc6 {[%clk 0:01:26]} 19. Rb5 {[%clk 0:01:31]}  f5 {[%clk 0:01:19]} 20. exf6 {[%clk 0:01:25]}  gxf6 {[%clk 0:01:18]} 21. Reb1 {[%clk 0:01:03]}  f5 {[%clk 0:00:57]} 22. Rxb7 {[%clk 0:00:50]}  e5 {[%clk 0:00:49]} 23. Nd6+ {[%clk 0:00:07]}  Qxd6 {[%clk 0:00:47]} 24. Ra7 {[%clk 0:00:07]}  e4 {[%clk 0:00:16]} 25. Bxd6 {[%clk 0:00:08]}  Bxd6 {[%clk 0:00:16]} 26. dxe4 {[%clk 0:00:08]}  Bxh2+ {[%clk 0:00:15]} 27. Kf1 {[%clk 0:00:07]}  Bb8 {[%clk 0:00:15]} 28. Qb3 {[%clk 0:00:04]}  Rh1+ {[%clk 0:00:14]} 29. Ke2 {[%clk 0:00:03]}  Rxb1 {[%clk 0:00:14]} 30. Qxb1 {[%clk 0:00:03]}  Bxa7 {[%clk 0:00:15]} 31. exf5 {[%clk 0:00:03]}  gxf5 {[%clk 0:00:14]} 32. Qxf5 {[%clk 0:00:04]}  Re8+ {[%clk 0:00:14]} 33. Kd1 {[%clk 0:00:04]}  Rf8 {[%clk 0:00:14]} 34. Qe6 {[%clk 0:00:01]}  Bb8 {[%clk 0:00:14]} 35. g4 {[%clk 0:00:01]}  Rxf2 {[%clk 0:00:13]} 36. g5 {[%clk 0:00:02]}  Be5 {[%clk 0:00:12]} 37. g6 {[%clk 0:00:01]}  Kc7 {[%clk 0:00:11]} 38. Qd5 {[%clk 0:00:01]}  Rf1+ {[%clk 0:00:10]} 39. Ke2 {[%clk 0:00:01]}  Rg1 {[%clk 0:00:11]} 40. Qf7 {[%clk 0:00:02]}  Rg3 {[%clk 0:00:10]} 41. Kf2 {[%clk 0:00:02]}  a4 {[%clk 0:00:10]} 42. Kf1 {[%clk 0:00:01]}  a3 {[%clk 0:00:10]} 43. Kf2 {[%clk 0:00:02]}  Rg4 {[%clk 0:00:10]} 44. Kf3 {[%clk 0:00:02]}  Rf4+ {[%clk 0:00:09]} 45. Qxf4 {[%clk 0:00:02]}  Bxf4 {[%clk 0:00:10]} 46. g7 {[%clk 0:00:03]}  Nf6 {[%clk 0:00:10]} 47. Kxf4 {[%clk 0:00:04]}  Kd6 {[%clk 0:00:09]} 48. Kf5 {[%clk 0:00:04]}  Ke7 {[%clk 0:00:10]} 49. Ke5 {[%clk 0:00:05]}  d3 {[%clk 0:00:10]} 50. g8=Q {[%clk 0:00:05]}  Nxg8 {[%clk 0:00:10]} 51. Kd5 {[%clk 0:00:05]}  d2 {[%clk 0:00:10]} 52. Kxc5 {[%clk 0:00:06]}  d1=Q {[%clk 0:00:10]} 0-1